[Event "*** Titled Tuesday Blitz"]
[Site "Chess.com"]
[Date "2020.04.28"]
[Round "8"]
[White "GMaka"]
[Black "Moon_stone123"]
[Result "1/2-1/2"]
[WhiteElo "2357"]
[BlackElo "2511"]
[TimeControl "180+1"]
[EndTime "11:37:30 PDT"]
[Termination "Game drawn - insufficient material"]

1. d4 {[%clk 0:03:00.9]} 1... Nf6 {[%clk 0:02:58.4]} 2. Bf4 {[%clk 0:03:00.4]}
2... e6 {[%clk 0:02:57.9]} 3. e3 {[%clk 0:02:58.5]} 3... d5 {[%clk 0:02:52.5]}
4. Nd2 {[%clk 0:02:57.6]} 4... c5 {[%clk 0:02:52.1]} 5. c3 {[%clk 0:02:57.2]}
5... Nc6 {[%clk 0:02:51.2]} 6. Ngf3 {[%clk 0:02:53.1]} 6... Be7 {[%clk
0:02:51.1]} 7. h3 {[%clk 0:02:49.8]} 7... O-O {[%clk 0:02:50.7]} 8. Bd3 {[%clk
0:02:49.1]} 8... b6 {[%clk 0:02:50.1]} 9. O-O {[%clk 0:02:44.4]} 9... Bb7 {[%clk
0:02:48.3]} 10. Bh2 {[%clk 0:02:44.3]} 10... Rc8 {[%clk 0:02:43.8]} 11. Qe2
{[%clk 0:02:42.4]} 11... cxd4 {[%clk 0:02:37.9]} 12. exd4 {[%clk 0:02:41]} 12...
Nd7 {[%clk 0:02:35.5]} 13. Rae1 {[%clk 0:02:22.7]} 13... Na5 {[%clk 0:02:31]}
14. Ne5 {[%clk 0:02:21.2]} 14... Nxe5 {[%clk 0:02:29.4]} 15. Bxe5 {[%clk
0:02:17.3]} 15... Re8 {[%clk 0:02:25.7]} 16. Qh5 {[%clk 0:01:47.8]} 16... g6
{[%clk 0:02:22.2]} 17. Qh6 {[%clk 0:01:35]} 17... Bf8 {[%clk 0:02:21.9]} 18. Qf4
{[%clk 0:01:31.2]} 18... Bg7 {[%clk 0:02:16.1]} 19. Bxg7 {[%clk 0:01:29.2]}
19... Kxg7 {[%clk 0:02:17]} 20. g4 {[%clk 0:01:26]} 20... Qc7 {[%clk 0:02:13.8]}
21. Qxc7 {[%clk 0:01:20.2]} 21... Rxc7 {[%clk 0:02:14.7]} 22. f4 {[%clk
0:01:20.6]} 22... Nc4 {[%clk 0:01:56.8]} 23. Nxc4 {[%clk 0:01:12.6]} 23... dxc4
{[%clk 0:01:57.7]} 24. Be4 {[%clk 0:01:13.5]} 24... Bxe4 {[%clk 0:01:51]} 25.
Rxe4 {[%clk 0:01:14.3]} 25... Rd7 {[%clk 0:01:45.9]} 26. Rfe1 {[%clk 0:01:11]}
26... Kf6 {[%clk 0:01:43.7]} 27. Re5 {[%clk 0:01:07.2]} 27... Red8 {[%clk
0:01:41.4]} 28. Kg2 {[%clk 0:01:01.7]} 28... Rd5 {[%clk 0:01:41.4]} 29. Kg3
{[%clk 0:01:02.1]} 29... Ke7 {[%clk 0:01:39.3]} 30. Kh4 {[%clk 0:00:57.2]} 30...
h6 {[%clk 0:01:33.9]} 31. g5 {[%clk 0:00:32.1]} 31... h5 {[%clk 0:01:29.2]} 32.
f5 {[%clk 0:00:32.3]} 32... gxf5 {[%clk 0:01:00.9]} 33. Rxd5 {[%clk 0:00:31.6]}
33... Rxd5 {[%clk 0:00:59.7]} 34. Kxh5 {[%clk 0:00:31.6]} 34... Rd8 {[%clk
0:00:58.2]} 35. Kh4 {[%clk 0:00:27.7]} 35... Rg8 {[%clk 0:00:55.4]} 36. d5
{[%clk 0:00:23.6]} 36... Kd6 {[%clk 0:00:51.7]} 37. dxe6 {[%clk 0:00:23.2]}
37... fxe6 {[%clk 0:00:52.6]} 38. Kh5 {[%clk 0:00:23.4]} 38... Rh8+ {[%clk
0:00:51.1]} 39. Kg6 {[%clk 0:00:23.4]} 39... Ke7 {[%clk 0:00:40.1]} 40. Rh1
{[%clk 0:00:18.5]} 40... f4 {[%clk 0:00:34]} 41. h4 {[%clk 0:00:14.7]} 41... f3
{[%clk 0:00:33.4]} 42. h5 {[%clk 0:00:13.6]} 42... Rg8+ {[%clk 0:00:30.4]} 43.
Kh6 {[%clk 0:00:13.2]} 43... e5 {[%clk 0:00:30.6]} 44. g6 {[%clk 0:00:10.6]}
44... Kf6 {[%clk 0:00:28.6]} 45. Kh7 {[%clk 0:00:03.2]} 45... Rg7+ {[%clk
0:00:29]} 46. Kh8 {[%clk 0:00:03.8]} 46... e4 {[%clk 0:00:26.4]} 47. Rd1 {[%clk
0:00:03.7]} 47... e3 {[%clk 0:00:21.4]} 48. Rd6+ {[%clk 0:00:03.5]} 48... Ke7
{[%clk 0:00:18.9]} 49. Kxg7 {[%clk 0:00:04.4]} 49... Kxd6 {[%clk 0:00:17.7]} 50.
h6 {[%clk 0:00:05.3]} 50... e2 {[%clk 0:00:15.6]} 51. h7 {[%clk 0:00:06.2]}
51... e1=Q {[%clk 0:00:16.2]} 52. h8=Q {[%clk 0:00:06.7]} 52... Qe5+ {[%clk
0:00:16]} 53. Kg8 {[%clk 0:00:06.9]} 53... Qxh8+ {[%clk 0:00:09.9]} 54. Kxh8
{[%clk 0:00:07.8]} 54... f2 {[%clk 0:00:07.5]} 55. g7 {[%clk 0:00:08.7]} 55...
f1=Q {[%clk 0:00:07.9]} 56. g8=Q {[%clk 0:00:08.8]} 56... Qf6+ {[%clk
0:00:08.1]} 57. Kh7 {[%clk 0:00:08.7]} 57... Qh4+ {[%clk 0:00:07.9]} 58. Kg7
{[%clk 0:00:08.8]} 58... Qg5+ {[%clk 0:00:08.1]} 59. Kf8 {[%clk 0:00:09.7]}
59... Qxg8+ {[%clk 0:00:08]} 60. Kxg8 {[%clk 0:00:10.6]} 60... Ke7 {[%clk
0:00:07.2]} 61. Kg7 {[%clk 0:00:10.6]} 61... b5 {[%clk 0:00:06.2]} 62. a3 {[%clk
0:00:10.4]} 62... a5 {[%clk 0:00:05.7]} 63. Kg8 {[%clk 0:00:10.8]} 63... Ke6
{[%clk 0:00:05]} 64. Kf8 {[%clk 0:00:10.9]} 64... Ke5 {[%clk 0:00:05.4]} 65. Ke7
{[%clk 0:00:11.8]} 65... Ke4 {[%clk 0:00:05.9]} 66. Kd6 {[%clk 0:00:12.6]} 66...
Kd3 {[%clk 0:00:06.4]} 67. Kc5 {[%clk 0:00:13.5]} 67... Kc2 {[%clk 0:00:05]} 68.
Kxb5 {[%clk 0:00:11]} 68... Kxb2 {[%clk 0:00:05.3]} 69. Kxc4 {[%clk 0:00:10.8]}
69... Kxa3 {[%clk 0:00:05.5]} 70. Kb5 {[%clk 0:00:10.3]} 70... a4 {[%clk
0:00:05.2]} 71. c4 {[%clk 0:00:10.8]} 71... Kb3 {[%clk 0:00:05.6]} 72. c5 {[%clk
0:00:11.3]} 72... a3 {[%clk 0:00:06.1]} 73. c6 {[%clk 0:00:12.2]} 73... a2
{[%clk 0:00:06.5]} 74. c7 {[%clk 0:00:13.1]} 74... a1=Q {[%clk 0:00:06.9]} 75.
c8=Q {[%clk 0:00:13.4]} 75... Qf1+ {[%clk 0:00:06.7]} 76. Kb6 {[%clk 0:00:13.4]}
76... Qf2+ {[%clk 0:00:06.6]} 77. Qc5 {[%clk 0:00:12.5]} 77... Qf6+ {[%clk
0:00:05.5]} 78. Kb5 {[%clk 0:00:11.8]} 78... Qf1+ {[%clk 0:00:04.4]} 79. Ka5
{[%clk 0:00:11.6]} 79... Qe1+ {[%clk 0:00:04]} 80. Ka6 {[%clk 0:00:11.2]} 80...
Qe2+ {[%clk 0:00:04.2]} 81. Ka7 {[%clk 0:00:10.7]} 81... Qc2 {[%clk 0:00:04.5]}
82. Qb5+ {[%clk 0:00:10]} 82... Kc3 {[%clk 0:00:04.2]} 83. Qc5+ {[%clk
0:00:10.4]} 83... Kd2 {[%clk 0:00:05.1]} 84. Qxc2+ {[%clk 0:00:11.2]} 84... Kxc2
{[%clk 0:00:05.9]} 1/2-1/2

[Event "*** Titled Tuesday Blitz"]
[Site "Chess.com"]
[Date "2020.04.28"]
[Round "8"]
[White "tan275"]
[Black "Popopuiyt"]
[Result "1-0"]
[WhiteElo "2198"]
[BlackElo "2324"]
[TimeControl "180+1"]
[EndTime "11:37:32 PDT"]
[Termination "tan275 won by resignation"]

1. d4 {[%clk 0:02:59.9]} 1... Nf6 {[%clk 0:02:59.4]} 2. c4 {[%clk 0:02:59.9]}
2... g6 {[%clk 0:02:59.7]} 3. g3 {[%clk 0:02:59.6]} 3... Bg7 {[%clk 0:02:59.4]}
4. Bg2 {[%clk 0:03:00.5]} 4... O-O {[%clk 0:02:59.7]} 5. Nc3 {[%clk 0:03:01]}
5... d6 {[%clk 0:02:59.3]} 6. Nf3 {[%clk 0:02:59.3]} 6... Nc6 {[%clk 0:02:59.1]}
7. h3 {[%clk 0:02:57.3]} 7... a6 {[%clk 0:02:48]} 8. Bg5 {[%clk 0:02:51.5]} 8...
h6 {[%clk 0:02:44.6]} 9. Be3 {[%clk 0:02:51]} 9... Rb8 {[%clk 0:02:02.3]} 10.
Qd2 {[%clk 0:02:47.1]} 10... Kh7 {[%clk 0:01:59.9]} 11. Rc1 {[%clk 0:02:45.4]}
11... Na5 {[%clk 0:01:57.2]} 12. b3 {[%clk 0:02:43.7]} 12... b5 {[%clk
0:01:55.1]} 13. Nd5 {[%clk 0:02:36.3]} 13... c6 {[%clk 0:01:37]} 14. Nxf6+
{[%clk 0:02:28.8]} 14... exf6 {[%clk 0:01:37.9]} 15. cxb5 {[%clk 0:02:19]} 15...
axb5 {[%clk 0:01:35.3]} 16. O-O {[%clk 0:02:07.6]} 16... Be6 {[%clk 0:01:33.8]}
17. Ne1 {[%clk 0:02:02.5]} 17... Qd7 {[%clk 0:01:31.6]} 18. Kh2 {[%clk
0:01:58.6]} 18... Ra8 {[%clk 0:01:27.9]} 19. Nd3 {[%clk 0:01:55.7]} 19... Rfc8
{[%clk 0:01:20.8]} 20. Nb4 {[%clk 0:01:43.9]} 20... d5 {[%clk 0:01:11.2]} 21.
Nd3 {[%clk 0:01:39.7]} 21... Nb7 {[%clk 0:01:11.4]} 22. Rc2 {[%clk 0:01:32.7]}
22... Ra6 {[%clk 0:00:52.4]} 23. Rfc1 {[%clk 0:01:30.5]} 23... g5 {[%clk
0:00:37.9]} 24. Nb4 {[%clk 0:01:25.3]} 24... Rb6 {[%clk 0:00:34.6]} 25. f4
{[%clk 0:01:02.8]} 25... Nd6 {[%clk 0:00:24.6]} 26. Nd3 {[%clk 0:00:57.3]} 26...
Bf5 {[%clk 0:00:21]} 27. g4 {[%clk 0:00:43.9]} 27... Be4 {[%clk 0:00:20.6]} 28.
Nc5 {[%clk 0:00:32.1]} 28... Qe7 {[%clk 0:00:19.4]} 29. Nxe4 {[%clk 0:00:27.7]}
29... Nxe4 {[%clk 0:00:20.3]} 30. Qd3 {[%clk 0:00:26.8]} 30... Kg8 {[%clk
0:00:19.5]} 31. Bxe4 {[%clk 0:00:26]} 31... dxe4 {[%clk 0:00:19.5]} 32. Qd2
{[%clk 0:00:26]} 32... Bf8 {[%clk 0:00:19.6]} 33. f5 {[%clk 0:00:23.9]} 33...
Qd6+ {[%clk 0:00:19.2]} 34. Kg2 {[%clk 0:00:23.3]} 34... Ra6 {[%clk 0:00:19.3]}
35. d5 {[%clk 0:00:22.5]} 35... Rd8 {[%clk 0:00:16.2]} 36. Bc5 {[%clk
0:00:21.3]} 36... Qxd5 {[%clk 0:00:15.9]} 37. Qxd5 {[%clk 0:00:21.2]} 37... cxd5
{[%clk 0:00:14.8]} 38. Bxf8 {[%clk 0:00:20.6]} 38... Kxf8 {[%clk 0:00:15.7]} 39.
e3 {[%clk 0:00:17.5]} 39... d4 {[%clk 0:00:16]} 40. exd4 {[%clk 0:00:17.7]}
40... Rxd4 {[%clk 0:00:16.9]} 41. Rc8+ {[%clk 0:00:17.4]} 41... Kg7 {[%clk
0:00:17.1]} 42. R1c2 {[%clk 0:00:15.7]} 42... e3 {[%clk 0:00:17.3]} 43. Kf3
{[%clk 0:00:15.5]} 43... Rd2 {[%clk 0:00:17.4]} 44. Kxe3 {[%clk 0:00:15.5]}
44... Rxc2 {[%clk 0:00:17]} 45. Rxc2 {[%clk 0:00:15.8]} 45... b4 {[%clk
0:00:17.4]} 46. Kd4 {[%clk 0:00:13.8]} 46... Ra8 {[%clk 0:00:16.5]} 47. Kc4
{[%clk 0:00:11]} 47... Rc8+ {[%clk 0:00:16.6]} 48. Kd3 {[%clk 0:00:11.2]} 48...
Rd8+ {[%clk 0:00:17]} 49. Ke3 {[%clk 0:00:11]} 49... Kf8 {[%clk 0:00:17]} 50.
Rc4 {[%clk 0:00:10]} 50... Rb8 {[%clk 0:00:17.2]} 51. Kd4 {[%clk 0:00:09.6]}
51... Ke7 {[%clk 0:00:17.6]} 52. Kc5 {[%clk 0:00:09.3]} 52... Ra8 {[%clk
0:00:18.2]} 53. Rxb4 {[%clk 0:00:08.8]} 53... Rxa2 {[%clk 0:00:18.4]} 54. Rb7+
{[%clk 0:00:09.2]} 54... Ke8 {[%clk 0:00:18.9]} 55. b4 {[%clk 0:00:09.5]} 55...
Rh2 {[%clk 0:00:18.4]} 56. b5 {[%clk 0:00:09.7]} 56... Rxh3 {[%clk 0:00:18.8]}
57. b6 {[%clk 0:00:10.2]} 57... Rb3 {[%clk 0:00:18.6]} 58. Kc6 {[%clk
0:00:09.7]} 58... Rc3+ {[%clk 0:00:18.5]} 59. Kd6 {[%clk 0:00:09.8]} 59... Rd3+
{[%clk 0:00:19]} 60. Kc7 {[%clk 0:00:10.2]} 60... Rc3+ {[%clk 0:00:19.5]} 61.
Kb8 {[%clk 0:00:10.2]} 61... Rc4 {[%clk 0:00:20.1]} 62. Rc7 {[%clk 0:00:09.3]}
62... Rxg4 {[%clk 0:00:20.7]} 63. b7 {[%clk 0:00:09.1]} 63... Rb4 {[%clk
0:00:21.2]} 64. Ka8 {[%clk 0:00:08.8]} 64... Ra4+ {[%clk 0:00:21.1]} 65. Kb8
{[%clk 0:00:09.2]} 65... Kd8 {[%clk 0:00:21.4]} 66. Rc8+ {[%clk 0:00:08.7]}
66... Kd7 {[%clk 0:00:21.1]} 67. Rc7+ {[%clk 0:00:08.7]} 67... Kd8 {[%clk
0:00:20.9]} 68. Rc8+ {[%clk 0:00:08.8]} 68... Kd7 {[%clk 0:00:21.2]} 69. Rf8
{[%clk 0:00:07.7]} 69... Rb4 {[%clk 0:00:18.9]} 70. Rxf7+ {[%clk 0:00:07.6]}
70... Kd8 {[%clk 0:00:19.2]} 71. Ka7 {[%clk 0:00:06.6]} 71... Ra4+ {[%clk
0:00:19.1]} 72. Kb6 {[%clk 0:00:06.7]} 72... Rb4+ {[%clk 0:00:19.8]} 73. Ka7
{[%clk 0:00:06.3]} 73... Ra4+ {[%clk 0:00:19.7]} 74. Kb6 {[%clk 0:00:06.6]}
74... Rb4+ {[%clk 0:00:20.1]} 75. Kc6 {[%clk 0:00:06.9]} 75... g4 {[%clk
0:00:18.7]} 76. Rf8+ {[%clk 0:00:06.3]} 76... Ke7 {[%clk 0:00:19.1]} 77. b8=Q
{[%clk 0:00:06.6]} 77... Rxb8 {[%clk 0:00:19.4]} 78. Rxb8 {[%clk 0:00:07.5]}
78... h5 {[%clk 0:00:19.8]} 79. Rh8 {[%clk 0:00:07.5]} 79... g3 {[%clk
0:00:19.4]} 80. Rg8 {[%clk 0:00:07.1]} 80... h4 {[%clk 0:00:19.4]} 81. Kd5
{[%clk 0:00:07.8]} 81... Kf7 {[%clk 0:00:19.4]} 82. Rg4 {[%clk 0:00:06.3]} 1-0

[Event "*** Titled Tuesday Blitz"]
[Site "Chess.com"]
[Date "2020.04.28"]
[Round "8"]
[White "Sjakkerntobi"]
[Black "DishonorOnYourCow"]
[Result "1-0"]
[WhiteElo "2204"]
[BlackElo "2291"]
[TimeControl "180+1"]
[EndTime "11:37:32 PDT"]
[Termination "Sjakkerntobi won on time"]

1. e4 {[%clk 0:03:00.9]} 1... c5 {[%clk 0:02:57.7]} 2. Nf3 {[%clk 0:03:00.5]}
2... d6 {[%clk 0:02:55.9]} 3. d4 {[%clk 0:03:00.9]} 3... cxd4 {[%clk 0:02:56.4]}
4. Qxd4 {[%clk 0:03:01.8]} 4... a6 {[%clk 0:02:55.2]} 5. c4 {[%clk 0:03:01.6]}
5... Nc6 {[%clk 0:02:54.2]} 6. Qd2 {[%clk 0:03:01]} 6... g6 {[%clk 0:02:51.3]}
7. Nc3 {[%clk 0:03:00.6]} 7... Bh6 {[%clk 0:02:50.4]} 8. Qd1 {[%clk 0:02:40.4]}
8... Bg7 {[%clk 0:02:49.5]} 9. Be2 {[%clk 0:02:40.2]} 9... Nf6 {[%clk
0:02:48.9]} 10. O-O {[%clk 0:02:40.2]} 10... O-O {[%clk 0:02:48.3]} 11. Re1
{[%clk 0:02:24.1]} 11... Bg4 {[%clk 0:02:28.4]} 12. Qd2 {[%clk 0:02:21.2]} 12...
Rc8 {[%clk 0:02:23.1]} 13. Rb1 {[%clk 0:02:20.8]} 13... Bxf3 {[%clk 0:02:20.2]}
14. Bxf3 {[%clk 0:02:19.9]} 14... Ne5 {[%clk 0:02:19.8]} 15. Be2 {[%clk
0:02:15.4]} 15... Nxc4 {[%clk 0:02:18.2]} 16. Bxc4 {[%clk 0:02:16.3]} 16... Rxc4
{[%clk 0:02:18.2]} 17. b3 {[%clk 0:02:17.2]} 17... Rc8 {[%clk 0:02:17.3]} 18.
Bb2 {[%clk 0:02:17.7]} 18... Qa5 {[%clk 0:02:11]} 19. Rbd1 {[%clk 0:02:13.3]}
19... Nd7 {[%clk 0:02:04.2]} 20. Nd5 {[%clk 0:02:08.6]} 20... Qd8 {[%clk
0:01:43.2]} 21. Bxg7 {[%clk 0:02:06.9]} 21... Kxg7 {[%clk 0:01:41.4]} 22. Qd4+
{[%clk 0:02:07.8]} 22... Kg8 {[%clk 0:01:40.3]} 23. f4 {[%clk 0:02:08]} 23...
Rc2 {[%clk 0:01:11.8]} 24. a4 {[%clk 0:02:04.9]} 24... Nc5 {[%clk 0:01:05]} 25.
Ne3 {[%clk 0:01:56.3]} 25... Ne6 {[%clk 0:00:58.9]} 26. Qd3 {[%clk 0:01:51.9]}
26... Rc6 {[%clk 0:00:52.1]} 27. Nd5 {[%clk 0:01:50.9]} 27... Nc7 {[%clk
0:00:47.5]} 28. f5 {[%clk 0:01:46.9]} 28... Nxd5 {[%clk 0:00:46.3]} 29. exd5
{[%clk 0:01:47.8]} 29... Qb6+ {[%clk 0:00:45.7]} 30. Kh1 {[%clk 0:01:46.4]}
30... Rc7 {[%clk 0:00:45]} 31. Qh3 {[%clk 0:01:33.4]} 31... Qb4 {[%clk
0:00:31.5]} 32. Re3 {[%clk 0:01:17]} 32... Rfc8 {[%clk 0:00:25.8]} 33. Qf3
{[%clk 0:00:57]} 33... Rc1 {[%clk 0:00:20.6]} 34. h3 {[%clk 0:00:57]} 34... Qd2
{[%clk 0:00:18.9]} 35. Ree1 {[%clk 0:00:52.7]} 35... Rxd1 {[%clk 0:00:18.4]} 36.
Rxd1 {[%clk 0:00:52.5]} 36... Qc3 {[%clk 0:00:18.7]} 37. Rd3 {[%clk 0:00:52.1]}
37... Qe1+ {[%clk 0:00:17.1]} 38. Kh2 {[%clk 0:00:52.2]} 38... Qe5+ {[%clk
0:00:17.2]} 39. Qg3 {[%clk 0:00:48.2]} 39... Qxf5 {[%clk 0:00:17]} 40. Rf3
{[%clk 0:00:46.7]} 40... Qe5 {[%clk 0:00:17.1]} 41. Qxe5 {[%clk 0:00:47.2]}
41... dxe5 {[%clk 0:00:18]} 42. Re3 {[%clk 0:00:48.1]} 42... f6 {[%clk
0:00:18.1]} 43. Kg3 {[%clk 0:00:48]} 43... Rc5 {[%clk 0:00:18]} 44. Rd3 {[%clk
0:00:48.6]} 44... Kf7 {[%clk 0:00:18.1]} 45. Kf3 {[%clk 0:00:49.1]} 45... f5
{[%clk 0:00:17.9]} 46. Ke3 {[%clk 0:00:49.6]} 46... e4 {[%clk 0:00:17.5]} 47.
Rd2 {[%clk 0:00:43.3]} 47... Rc3+ {[%clk 0:00:17.2]} 48. Kd4 {[%clk 0:00:44.1]}
48... Rxb3 {[%clk 0:00:17.1]} 49. Ke5 {[%clk 0:00:44.5]} 49... e3 {[%clk
0:00:15.4]} 50. Re2 {[%clk 0:00:43.9]} 50... Rd3 {[%clk 0:00:15]} 51. g4 {[%clk
0:00:42.4]} 51... fxg4 {[%clk 0:00:14.5]} 52. hxg4 {[%clk 0:00:43.3]} 52... Ra3
{[%clk 0:00:13.5]} 53. g5 {[%clk 0:00:42.3]} 53... Rxa4 {[%clk 0:00:13.4]} 54.
Rxe3 {[%clk 0:00:42.3]} 54... Rb4 {[%clk 0:00:13]} 55. Rh3 {[%clk 0:00:42.1]}
55... Kg7 {[%clk 0:00:12.2]} 56. Re3 {[%clk 0:00:40.8]} 56... Rb6 {[%clk
0:00:10.6]} 57. Rc3 {[%clk 0:00:38.7]} 57... h6 {[%clk 0:00:10.3]} 58. Rc7
{[%clk 0:00:37.5]} 58... hxg5 {[%clk 0:00:09.9]} 59. Rxe7+ {[%clk 0:00:38.2]}
59... Kf8 {[%clk 0:00:10.4]} 60. Rc7 {[%clk 0:00:35.7]} 60... g4 {[%clk
0:00:10.5]} 61. Rc4 {[%clk 0:00:35.1]} 61... Ke7 {[%clk 0:00:09.5]} 62. Rxg4
{[%clk 0:00:35]} 62... a5 {[%clk 0:00:09.4]} 63. Rh4 {[%clk 0:00:34.9]} 63... a4
{[%clk 0:00:08.7]} 64. Rh7+ {[%clk 0:00:35]} 64... Ke8 {[%clk 0:00:08.8]} 65. d6
{[%clk 0:00:35.4]} 65... Rb1 {[%clk 0:00:08.6]} 66. Rh8+ {[%clk 0:00:33.2]}
66... Kd7 {[%clk 0:00:08.1]} 67. Rh7+ {[%clk 0:00:33.6]} 67... Kd8 {[%clk
0:00:08.1]} 68. Rh8+ {[%clk 0:00:33.5]} 68... Kd7 {[%clk 0:00:08]} 69. Rh7+
{[%clk 0:00:33.8]} 69... Kc6 {[%clk 0:00:07.3]} 70. Rc7+ {[%clk 0:00:33.5]}
70... Kb6 {[%clk 0:00:07.3]} 71. Rc4 {[%clk 0:00:32]} 71... Re1+ {[%clk
0:00:06.9]} 72. Kf6 {[%clk 0:00:32.4]} 72... Rd1 {[%clk 0:00:05.4]} 73. Ke7
{[%clk 0:00:28.8]} 73... a3 {[%clk 0:00:05.3]} 74. Ra4 {[%clk 0:00:28.8]} 74...
Rd3 {[%clk 0:00:04.6]} 75. d7 {[%clk 0:00:29.2]} 75... Kb5 {[%clk 0:00:04.7]}
76. Ra7 {[%clk 0:00:28.8]} 76... Kb4 {[%clk 0:00:04]} 77. Rxb7+ {[%clk
0:00:27.8]} 77... Kc3 {[%clk 0:00:03.9]} 78. Rc7+ {[%clk 0:00:23.8]} 78... Kb2
{[%clk 0:00:03.7]} 79. Rb7+ {[%clk 0:00:24.3]} 79... Ka1 {[%clk 0:00:03.7]} 80.
Rb3 {[%clk 0:00:20.3]} 80... Rd4 {[%clk 0:00:02.9]} 81. Rxa3+ {[%clk 0:00:19.5]}
81... Kb2 {[%clk 0:00:03.1]} 82. Rg3 {[%clk 0:00:20.4]} 82... Kc2 {[%clk
0:00:01.3]} 83. Rxg6 {[%clk 0:00:20.5]} 83... Re4+ {[%clk 0:00:01.7]} 84. Re6
{[%clk 0:00:20.6]} 84... Rd4 {[%clk 0:00:01.8]} 85. Rd6 {[%clk 0:00:21.2]} 85...
Re4+ {[%clk 0:00:02.2]} 86. Kf6 {[%clk 0:00:21.7]} 86... Rf4+ {[%clk 0:00:02.1]}
87. Ke5 {[%clk 0:00:21.9]} 87... Rf8 {[%clk 0:00:02.5]} 88. d8=Q {[%clk
0:00:22.2]} 88... Rxd8 {[%clk 0:00:03.1]} 89. Rxd8 {[%clk 0:00:23.1]} 1-0